bitfinex-derivatives/quotes_SOLF0:USTF0_20250819
["timestamp","ask_amount","ask_price","bid_price","bid_amount"]
[1755610928431,2.98,181.95,181.86,5.4969]
[1755610928818,2.98,181.95,181.85,5.4971]
[1755610929333,1.37438805,181.94,181.83,0.02]
[1755610929530,2.98,181.95,181.83,0.02]
[1755610929835,3.09,181.93,181.83,0.02]
[1755610930627,3.09,181.93,181.85,5.4969]
[1755610931029,369.56,181.96,181.88,5.4961]
[1755610931228,3.09,181.97,181.85,7.18231603]
[1755610931733,3.09,181.97,181.89,5.4957]
[1755610932431,3.09,182.01,181.85,7.18231603]
[1755610932627,3.09,182.01,181.85,11.77507305]
[1755610932934,3.09,182.01,181.87,4.59275702]
[1755610933330,3.09,182.01,181.9,5.4957]
[1755610933530,3.09,182.01,181.86,4.59275702]
[1755610933730,3.09,182.01,181.87,4.59275702]
[1755610934234,3.09,182.01,181.86,4.59275702]
[1755610934936,3.09,182.01,181.92,5.4948]
[1755610935130,3.09,182.01,181.89,7.18231603]
[1755610936140,3.09,182.01,181.88,4.59275702]
[1755610936436,3.09,182.01,181.87,4.59275702]
[1755610936735,3.09,182.01,181.94,5.4945]
[1755610936931,3.09,182.01,181.9,7.18231603]
[1755610937335,150.77,182.02,181.93,5.4947]
[1755610937539,150.77,182.02,181.9,7.18231603]
[1755610937937,150.77,182.02,181.94,5.4943]
[1755610938236,150.77,182.02,181.9,7.18231603]
[1755610938437,150.77,182.02,181.92,5.4949]
[1755610939138,150.77,182.02,181.9,5.4954]
[1755610939338,150.77,182.02,181.88,7.18231603]
[1755610939537,150.77,182.02,181.92,5.495]
[1755610939933,150.77,182.02,181.88,7.18231603]
[1755610940131,150.77,182.02,181.91,5.4953]
[1755610940638,7.18231603,182.01,181.88,5.4962]
[1755610940833,7.18231603,182.01,181.84,4.59275702]
[1755610941035,147.68,182.02,181.87,7.18231603]
[1755610941234,147.68,182.02,181.9,5.4954]
[1755610941435,147.68,182.02,181.87,7.18231603]
[1755610941837,147.68,182.02,181.91,5.4953]
[1755610942436,147.68,182.02,181.87,7.18231603]
[1755610942738,147.68,182.02,181.83,11.77507305]
[1755610942940,147.68,182.02,181.89,5.4957]
[1755610943243,147.68,182.02,181.83,11.77507305]
[1755610943442,147.68,182.02,181.92,5.4949]
[1755610943647,147.68,182.02,181.87,7.18231603]
[1755610944848,147.68,182.02,181.92,5.4951]
[1755610945052,147.68,182.02,181.87,7.18231603]
[1755610945442,147.68,182.02,181.89,5.4958]
[1755610945643,147.68,182.02,181.87,7.18231603]
[1755610945844,147.68,182.02,181.89,5.4959]
[1755610946542,147.68,182.02,181.88,5.4962]
[1755610946745,7.18231603,182.01,181.83,7.18231603]
[1755610947750,7.18231603,182.01,181.88,5.4962]
[1755610947942,7.18231603,182.01,181.83,7.18231603]
[1755610948144,1.37403826,182.0,181.79,7.18231603]
[1755610948445,7.18231603,182.01,181.79,11.77507305]
[1755610949248,369.52,182.06,181.79,11.77507305]
[1755610949249,147.28,182.0,181.83,7.18231603]
[1755610950550,147.28,182.0,181.88,4.61296047]
[1755610950945,4.61296047,182.02,181.88,4.61296047]
[1755610951151,147.26,182.01,181.88,4.61296047]
[1755610951543,147.26,182.01,181.87,4.61296047]
[1755610951746,4.61296047,181.99,181.78,4.59275702]
[1755610951948,4.61296047,181.96,181.82,4.61296047]
[1755610952449,4.61296047,181.96,181.85,5.497]
[1755610953050,4.61296047,181.96,181.84,5.4974]
[1755610953248,4.61296047,181.96,181.82,4.61296047]
[1755610953452,4.61296047,181.93,181.79,4.61296047]
[1755610953751,151.83296047,181.93,181.79,4.61296047]
[1755610954047,151.83296047,181.93,181.76,4.59275702]
[1755610954048,147.22,181.93,181.82,4.61296047]
[1755610954451,7.17988629,181.92,181.75,4.59275702]
[1755610954649,1.37479599,181.91,181.73,7.17988629]
[1755610954853,7.17988629,181.92,181.73,7.17988629]
[1755610955054,1.37480347,181.91,181.73,7.17988629]
[1755610955254,7.17988629,181.92,181.73,7.17988629]
[1755610955456,1.37485224,181.91,181.73,7.17988629]
[1755610955648,7.17988629,181.92,181.73,7.17988629]
[1755610955850,1.3747801,181.91,181.73,7.17988629]
[1755610956157,7.17988629,181.92,181.73,7.17988629]
[1755610956957,1.37476369,181.91,181.73,7.17988629]
[1755610957160,7.17988629,181.92,181.71,369.64]
[1755610957355,1.37480414,181.91,181.71,369.64]
[1755610957555,7.17988629,181.92,181.71,369.64]
[1755610957759,7.17988629,181.92,181.74,7.17988629]
[1755610957958,147.18,181.94,181.82,5.4979]
[1755610958156,147.18,181.94,181.74,11.77264331]
[1755610958349,7.17988629,181.92,181.72,4.59275702]
[1755610958548,1.37475584,181.91,181.71,369.64]
[1755610958753,1.37475584,181.9,181.71,369.64]
[1755610958953,7.17988629,181.92,181.71,369.64]
[1755610959157,1.37492503,181.91,181.71,369.64]
[1755610959458,7.17988629,181.88,181.71,369.64]
[1755610960557,1.37505602,181.87,181.71,375.1412]
[1755610960761,7.17988629,181.88,181.71,375.1412]
[1755610960954,1.37512851,181.87,181.71,369.64]
[1755610961261,7.17988629,181.88,181.71,369.64]
[1755610961558,1.37505931,181.87,181.71,369.64]
[1755610961758,7.17988629,181.88,181.71,369.64]
[1755610962366,147.18,181.9,181.73,11.77264331]
[1755610962658,154.35988629,181.92,181.81,5.4984]
[1755610962858,154.35988629,181.92,181.75,4.59275702]
[1755610963062,147.18,181.92,181.77,7.17988629]
[1755610963556,147.18,181.92,181.74,4.59275702]
[1755610963954,1.37462522,181.91,181.73,11.77264331]
[1755610964260,1.37471632,181.9,181.73,11.77264331]
[1755610964462,154.35988629,181.92,181.77,5.4996]
[1755610964662,1.37471632,181.91,181.73,11.77264331]
[1755610964861,1.37471632,181.9,181.73,11.77264331]
[1755610965057,154.35988629,181.92,181.73,11.77264331]
[1755610965360,1.37471632,181.91,181.78,5.4991]
[1755610965565,1.37471632,181.9,181.73,11.77264331]
[1755610965758,154.35988629,181.92,181.74,4.59275702]
[1755610965960,154.35988629,181.92,181.81,5.4982]
[1755610966262,147.18,181.92,181.75,151.75275702]
[1755610966465,369.38,181.93,181.83,5.4976]
[1755610966660,369.38,181.93,181.77,11.77264331]
[1755610966962,369.38,181.93,181.86,5.4968]
[1755610967262,369.38,181.93,181.81,11.77264331]
[1755610967456,147.16,181.94,181.87,5.4963]
[1755610967661,147.16,181.94,181.81,11.77264331]
[1755610967863,147.16,181.94,181.82,4.59275702]
[1755610968064,147.16,181.94,181.89,5.4959]
[1755610968264,386.02,182.04,181.83,4.59275702]
[1755610968564,148.49401548,182.03,181.91,5.4953]
[1755610968762,1.37401548,182.02,181.91,5.4953]
[1755610968958,147.12,182.03,181.85,11.77264331]
[1755610969162,1.37389069,182.02,181.85,7.17988629]
[1755610969363,1.37389069,182.01,181.89,5.4958]
[1755610969561,147.12,182.03,181.89,5.4958]
[1755610969762,1.37389092,182.02,181.87,5.4965]
[1755610969958,1.37389092,182.01,181.85,7.17988629]
[1755610970159,1.37389092,182.0,181.85,7.17988629]
[1755610970359,147.12,182.03,181.88,5.4962]
[1755610970561,1.37395637,182.02,181.88,5.4962]
[1755610970763,1.37395637,182.01,181.88,5.4962]
[1755610970964,147.12,182.03,181.88,5.4962]
[1755610971168,1.37395614,182.02,181.88,5.4962]
[1755610971367,147.12,182.03,181.88,5.4962]
[1755610971559,1.37395591,182.02,181.87,5.4965]
[1755610971755,7.17988629,182.0,181.84,147.12]
[1755610971969,1.37395591,182.02,181.84,147.12]
[1755610972163,154.29988629,182.03,181.85,11.77264331]
[1755610972664,7.17988629,181.99,181.84,147.12]
[1755610973166,1.37419895,181.98,181.85,5.4971]
[1755610973466,7.17988629,181.99,181.84,147.12]
[1755610973667,1.37400558,181.98,181.84,147.12]
[1755610973869,7.17988629,181.99,181.87,5.4966]
[1755610974067,1.37410209,181.98,181.84,147.12]
[1755610974264,7.17988629,181.99,181.84,147.12]
[1755610974565,1.37410219,181.98,181.84,147.12]
[1755610974766,7.17988629,181.99,181.84,147.12]
[1755610974968,1.37410219,181.98,181.84,147.12]
[1755610975168,7.17988629,181.99,181.84,147.12]
[1755610975368,1.37410276,181.98,181.84,147.12]
[1755610975568,7.17988629,181.99,181.84,147.12]
[1755610975771,1.37412689,181.98,181.81,11.77264331]
[1755610975960,7.17988629,181.95,181.78,4.59275702]
[1755610976163,148.37412689,181.94,181.81,5.4984]
[1755610976364,147.0,181.94,181.78,4.59275702]
[1755610976572,147.0,181.94,181.77,11.77264331]
[1755610976770,147.0,181.94,181.79,5.499]
[1755610977164,147.0,181.94,181.77,4.59275702]
[1755610977369,1.37455971,181.93,181.78,5.4992]
[1755610977566,147.0,181.94,181.78,5.4992]
[1755610977873,1.37455971,181.93,181.79,5.499]
[1755610978172,147.0,181.94,181.76,4.59275702]
[1755610978667,1.37458363,181.93,181.76,4.59275702]
[1755610978872,147.0,181.94,181.76,4.59275702]
[1755610979064,147.0,181.94,181.79,5.499]
[1755610979261,147.0,181.94,181.76,4.59275702]
[1755610979972,147.0,181.94,181.78,5.499]
[1755610980171,7.17988629,181.91,181.76,4.59275702]
[1755610980367,7.17988629,181.91,181.74,11.77264331]
[1755610980561,1.37474083,181.9,181.72,4.59275702]
[1755610980774,1.37474083,181.89,181.72,4.59275702]
[1755610980966,7.17988629,181.91,181.72,4.59275702]
[1755610981167,7.17988629,181.87,181.71,374.23275702]
[1755610982077,7.17988629,181.88,181.71,374.23275702]
[1755610982368,1.37503762,181.87,181.71,369.64]
[1755610982569,7.17988629,181.88,181.71,369.64]
[1755610982774,1.37506178,181.87,181.71,369.64]
[1755610982974,7.17988629,181.88,181.71,369.64]
[1755610983276,1.37508594,181.87,181.71,369.64]
[1755610983471,1.37508594,181.86,181.71,369.64]
[1755610983781,7.17988629,181.84,181.69,146.94]
[1755610984771,7.17988629,181.84,181.69,152.442]
[1755610984967,7.17988629,181.84,181.69,146.94]
[1755610985572,1.37532776,181.83,181.69,146.94]
[1755610985772,154.07988629,181.84,181.69,146.94]
[1755610986172,1.37532799,181.83,181.69,146.94]
[1755610986370,154.07988629,181.84,181.69,146.94]
[1755610986772,154.07988629,181.84,181.72,5.5009]
[1755610987575,154.07988629,181.84,181.73,5.5008]
[1755610987771,7.17988629,181.88,181.69,151.53275702]
[1755610988074,154.07988629,181.88,181.69,151.53275702]
[1755610988277,1.37500066,181.87,181.69,151.53275702]
[1755610988581,154.07988629,181.88,181.69,151.53275702]
[1755610988971,1.37499022,181.87,181.69,158.71264331]
[1755610989173,154.07988629,181.88,181.69,158.71264331]
[1755610989373,154.07988629,181.88,181.69,151.53275702]
[1755610989374,1.37501685,181.87,181.69,151.53275702]
[1755610989578,1.37501685,181.87,181.69,146.94]
[1755610989876,154.07988629,181.88,181.69,146.94]
[1755610990071,1.37501685,181.87,181.73,5.5008]
[1755610990272,154.07988629,181.88,181.73,5.5008]
[1755610990470,154.07988629,181.88,181.67,5.5026]
[1755610990471,7.17988629,181.84,181.67,5.5026]
[1755610990675,7.17988629,181.84,181.66,4.59275702]
[1755610990676,1.37519428,181.83,181.64,0.95730634]
[1755610990875,1.37519428,181.82,181.64,0.95730634]
[1755610991082,7.17988629,181.84,181.69,5.5018]
[1755610991281,1.37533421,181.83,181.64,5.55006336]
[1755610991574,1.37533421,181.82,181.68,5.5022]
[1755610991773,7.17988629,181.84,181.64,5.55006336]
[1755610991974,1.37538778,181.83,181.64,5.55006336]
[1755610992172,1.37538778,181.82,181.64,0.95730634]
[1755610992379,163.4,181.88,181.65,11.77264331]
[1755610992678,7.17988629,181.86,181.65,11.77264331]
[1755610992878,7.17988629,181.82,181.64,152.41006336]
[1755610993074,7.17988629,181.82,181.64,147.81730634]
[1755610993276,1.37543338,181.81,181.64,147.81730634]
[1755610993473,7.17988629,181.82,181.64,147.81730634]
[1755610994277,7.17988629,181.82,181.64,152.41006336]
[1755610994466,7.17988629,181.82,181.64,147.81730634]
[1755610994672,7.17988629,181.82,181.67,4.59275702]
[1755610995676,7.17988629,181.82,181.66,4.59275702]
[1755610995979,7.17988629,181.78,181.65,4.59275702]
[1755610996475,7.17988629,181.78,181.64,11.05336336]
[1755610996675,7.17988629,181.78,181.66,4.59275702]
[1755610997283,7.17988629,181.78,181.63,4.59275702]
[1755610997776,7.17988629,181.78,181.62,4.59275702]
[1755610998181,7.17988629,181.78,181.62,10.09665702]
[1755610998672,7.17988629,181.78,181.61,520.89275702]
[1755610998869,7.17988629,181.78,181.62,4.59275702]
[1755610999181,23.67988629,181.86,181.57,4.59275702]
[1755610999182,7.17988629,181.64,181.57,4.59275702]
[1755610999383,146.8,181.68,181.51,6.09863088]
[1755610999580,146.8,181.68,181.48,4.59054727]
[1755610999581,7.17988629,181.6,181.48,4.59054727]
[1755610999782,7.17988629,181.6,181.45,4.59054727]
[1755611000378,7.17988629,181.58,181.43,146.8]
[1755611000570,7.17988629,181.58,181.42,5.54914573]
[1755611001177,3.02,181.57,181.42,0.95859846]
[1755611002379,3.02,181.63,181.42,0.95859846]
[1755611002574,3.02,181.53,181.38,146.78]
[1755611002775,3.02,181.53,181.38,152.2912]
[1755611003283,3.02,181.53,181.39,5.5109]
[1755611003581,3.02,181.53,181.38,146.78]
[1755611003777,3.02,181.53,181.39,5.5111]
[1755611003984,3.02,181.53,181.38,146.78]
[1755611005182,3.02,181.53,181.38,147.7391533]
[1755611005873,3.02,181.53,181.38,0.9591533]
[1755611006071,10.19988629,181.5,181.32,347.94351334]
[1755611006275,10.19988629,181.5,181.35,0.95924583]
[1755611006678,7.17988629,181.54,181.35,8.13913212]
[1755611007083,3.02,181.55,181.39,7.17988629]
[1755611007284,7.17988629,181.6,181.43,7.17988629]
[1755611007477,3.02,181.61,181.5,5.5075]
[1755611007782,376.85988629,181.64,181.43,7.17988629]
[1755611007783,3.02,181.59,181.43,7.17988629]
[1755611008472,3.02,181.59,181.47,5.5086]
[1755611008777,3.02,181.59,181.43,7.17988629]
[1755611009579,369.68,181.64,181.54,5.5065]
[1755611009876,3.02,181.65,181.51,7.17988629]
[1755611010477,3.02,181.65,181.49,146.84]
[1755611011272,3.02,181.65,181.56,5.5057]
[1755611011583,3.02,181.65,181.52,7.17988629]
[1755611012177,3.02,181.62,181.44,370.0]
[1755611012580,147.81863807,181.68,181.41,7.17988629]
[1755611012581,3.02,181.58,181.41,7.17988629]
[1755611013883,3.02,181.58,181.4,5.5106]
[1755611014277,16.5,181.58,181.39,146.86]
[1755611014489,3.02,181.54,181.37,7.17988629]
[1755611014680,16.5,181.54,181.35,0.95924583]
[1755611014989,3.02,181.5,181.34,370.08]
[1755611016483,3.02,181.5,181.34,375.5926]
[1755611016789,3.02,181.5,181.34,370.08]
[1755611017380,7.17988629,181.48,181.32,8.0]
[1755611017586,3.02,181.43,181.32,8.0]
[1755611017794,3.02,181.39,181.32,8.0]
[1755611018490,3.02,181.35,181.21,3.05]
[1755611019291,7.17988629,181.36,181.12,370.12]
[1755611019292,7.17988629,181.34,181.12,370.12]
[1755611019693,7.17988629,181.34,181.15,7.17988629]
[1755611019990,7.17988629,181.34,181.16,0.96033115]
[1755611020296,393.87988629,181.34,181.16,0.96033115]
[1755611020483,377.37988629,181.34,181.07,146.86]
[1755611020689,370.2,181.34,181.15,7.17988629]
[1755611020992,370.2,181.34,181.16,7.17988629]
[1755611021186,370.2,181.34,181.15,0.9603179]
[1755611021392,7.17988629,181.39,181.15,0.9603179]
[1755611021393,7.17988629,181.41,181.22,7.17988629]
[1755611021580,146.86,181.41,181.22,7.17988629]
[1755611021779,146.86,181.41,181.26,5.5148]
[1755611021986,7.17988629,181.4,181.22,7.17988629]
[1755611022389,7.17988629,181.36,181.15,371.1603179]
[1755611022794,7.17988629,181.32,181.18,5.5175]
[1755611022994,7.17988629,181.32,181.15,371.1603179]
[1755611023385,7.17988629,181.32,181.19,5.5172]
[1755611023589,7.17988629,181.32,181.2,2.09893078]
[1755611023791,7.17988629,181.32,181.16,2.09893078]
[1755611023990,7.17988629,181.32,181.17,2.09893078]
[1755611024291,7.17988629,181.28,181.14,2.09893078]
[1755611024490,146.92,181.27,181.07,2.09893078]
[1755611024787,517.32,181.28,181.1,7.17988629]
[1755611024994,517.32,181.28,181.11,2.09893078]
[1755611025187,370.38,181.28,181.11,2.09893078]
[1755611025894,370.38,181.28,181.11,7.17988629]
[1755611026097,370.38,181.28,181.16,5.5179]
[1755611026290,370.38,181.28,181.11,7.17988629]
[1755611026496,370.38,181.28,181.18,5.5174]
[1755611026690,370.38,181.28,181.11,7.17988629]
[1755611026884,370.38,181.28,181.12,2.09407089]
[1755611027085,370.38,181.28,181.13,2.09407089]
[1755611027395,370.38,181.28,181.15,7.17988629]
[1755611027590,370.38,181.28,181.16,2.09407089]
[1755611027786,370.38,181.28,181.13,7.17988629]
[1755611027787,120.97161554,181.32,181.14,2.09407089]
[1755611027994,7.17988629,181.36,181.17,7.17988629]
[1755611028291,12.21841632,181.46,181.21,12.21841632]
[1755611028495,12.21841632,181.46,181.22,2.09407089]
[1755611028690,12.21841632,181.46,181.23,2.09407089]
[1755611028889,12.21841632,181.46,181.22,2.09407089]
[1755611029090,12.21841632,181.41,181.22,2.09407089]
[1755611029298,12.21841632,181.41,181.19,2.09407089]
[1755611029498,12.21841632,181.41,181.2,2.09407089]
[1755611029697,12.21841632,181.41,181.21,2.09407089]
[1755611029995,163.44,181.49,181.03,11.0441]
[1755611029996,12.21841632,181.36,181.19,2.09407089]
[1755611030189,12.21841632,181.31,181.1,2.09407089]
[1755611030388,146.98,181.3,181.11,2.09407089]
[1755611030601,146.98,181.3,181.12,2.09407089]
[1755611030795,370.58,181.32,181.13,2.09407089]
[1755611031097,370.58,181.32,181.14,2.09407089]
[1755611031301,370.58,181.32,181.15,2.09407089]
[1755611031597,370.58,181.32,181.16,2.09407089]
[1755611031797,370.58,181.32,181.17,2.09407089]
[1755611031995,370.58,181.32,181.08,14.31248721]
[1755611031996,12.21841632,181.3,181.08,14.31248721]
[1755611032193,12.21841632,181.3,181.09,2.09407089]
[1755611032393,12.21841632,181.3,181.12,5.5191]
[1755611032593,12.21841632,181.3,181.13,2.09407089]
[1755611032793,370.58,181.32,181.14,2.09407089]
[1755611032993,370.58,181.32,181.15,2.09407089]
[1755611033195,370.58,181.32,181.16,2.24320142]
[1755611033496,370.58,181.32,181.17,2.24320142]
[1755611034299,370.58,181.32,181.09,12.21841632]
[1755611034499,12.21841632,181.3,181.09,12.21841632]
[1755611035108,370.58,181.32,181.1,2.24657787]
[1755611035401,12.21841632,181.31,181.11,2.24657787]
[1755611035608,12.21841632,181.31,181.12,2.24657787]
[1755611035906,28.71841632,181.31,181.13,2.24657787]
[1755611036105,28.71841632,181.31,181.14,2.24657787]
[1755611036296,28.71841632,181.31,181.15,2.24657787]
[1755611036505,28.71841632,181.31,181.07,371.54062275]
[1755611036506,28.71841632,181.31,181.16,2.24657787]
[1755611036700,28.71841632,181.31,181.17,2.24657787]
[1755611037005,12.21841632,181.26,181.18,2.46388245]
[1755611037196,147.02,181.25,181.08,2.46388245]
[1755611037503,147.02,181.25,181.07,0.96062275]
[1755611037504,147.02,181.25,181.09,2.46388245]
[1755611037700,147.02,181.25,181.1,2.46388245]
[1755611037895,147.02,181.25,181.08,2.23765345]
[1755611037896,12.21841632,181.21,181.08,2.23765345]
[1755611038105,12.21841632,181.16,181.0,0.96088799]
[1755611038303,147.04,181.15,181.0,0.96088799]
[1755611038505,147.04,181.15,180.97,370.7]
[1755611038700,147.04,181.15,180.99,0.96120648]
[1755611038904,147.18,181.15,180.99,0.96120648]
[1755611039104,370.7,181.19,180.99,0.96120648]
[1755611039301,147.5,181.18,180.99,0.96120648]
[1755611040603,159.71841632,181.18,180.99,0.96120648]
[1755611041011,159.71841632,181.18,181.07,0.04119324]
[1755611041511,159.71841632,181.18,180.99,0.96120648]
[1755611041512,0.03926538,181.1,180.99,0.96120648]
[1755611041708,149.6,181.09,180.9,161.81841632]
[1755611041905,149.6,181.09,180.9,149.6]
[1755611042204,149.6,181.09,180.95,0.96137908]
[1755611042403,149.6,181.09,180.9,149.6]
[1755611042404,149.6,181.09,180.87,370.76]
[1755611042606,370.7,181.19,180.87,370.76]
[1755611042805,12.21841632,181.13,180.94,5.5248]
[1755611043013,12.21841632,181.14,180.9,0.96163146]
[1755611043202,12.21841632,181.09,180.91,5.26186462]
[1755611043406,149.74,181.08,180.92,5.26186462]
[1755611043604,12.21841632,181.09,180.93,10.2770492]
[1755611043808,12.21841632,181.09,180.94,10.2770492]
[1755611043809,149.78,181.08,180.94,10.2770492]
[1755611044007,149.78,181.08,180.88,0.96167132]
[1755611044008,12.21841632,181.13,180.95,10.2770492]
[1755611044310,149.92,181.12,180.96,7.22601519]
[1755611044507,149.92,181.12,180.97,2.21083061]
[1755611044713,149.92,181.12,180.88,0.96167132]
[1755611044910,150.08,181.11,180.92,12.21841632]
[1755611045115,150.08,181.11,180.93,2.21131916]
[1755611045309,150.08,181.11,180.94,2.21131916]
[1755611045505,12.21841632,181.07,180.95,2.21015539]
[1755611045820,370.96,181.06,180.89,2.2105574]
[1755611046015,370.96,181.06,180.9,2.2105574]
[1755611046213,12.21841632,181.03,180.91,2.2105574]
[1755611046411,383.17841632,181.06,180.92,2.2105574]
[1755611046709,150.2,181.03,180.93,2.20841478]
[1755611046914,150.2,181.05,180.94,2.20841478]
[1755611047116,150.2,181.05,180.95,2.20841478]
[1755611047316,150.2,181.05,180.84,2.20841478]
[1755611047515,150.2,181.05,180.85,2.20841478]
[1755611047714,150.2,181.05,180.83,0.96187067]
[1755611047715,150.2,181.05,180.86,2.20841478]
[1755611048023,150.2,181.05,180.87,2.2067313]
[1755611048215,150.2,181.05,180.88,2.2067313]
[1755611048407,150.2,181.05,180.92,5.5252]
[1755611048609,370.96,181.06,180.93,2.2067313]
[1755611048814,370.96,181.06,180.94,2.2067313]
[1755611049009,370.96,181.06,180.95,2.2067313]
[1755611049218,370.96,181.06,180.96,2.2067313]
[1755611049407,370.96,181.06,180.97,2.2067313]
[1755611049607,370.96,181.06,180.98,7.20150802]
[1755611049816,150.36,181.09,180.99,7.20150802]
[1755611050011,150.36,181.09,181.0,7.20150802]
[1755611050206,12.21841632,181.14,180.86,62.0]
[1755611050207,12.21841632,181.14,181.01,7.20150802]
[1755611050413,150.44,181.13,181.02,2.2067313]
[1755611050611,150.44,181.13,181.03,2.2067313]
[1755611050815,150.44,181.13,181.04,2.2067313]
[1755611051115,150.44,181.13,180.93,4.99420641]
[1755611051312,150.44,181.13,180.94,12.93808818]
[1755611051519,150.44,181.13,180.95,7.41358818]
[1755611051707,150.44,181.13,180.96,7.41358818]
[1755611051911,150.44,181.13,180.97,7.41358818]
[1755611052113,150.44,181.13,180.98,7.41358818]
[1755611052313,150.44,181.13,180.99,7.41358818]
[1755611052506,150.44,181.13,181.0,13.00577621]
[1755611052712,150.44,181.13,181.01,13.00577621]
[1755611052913,383.31841632,181.16,181.02,13.00577621]
[1755611053109,150.46,181.15,181.03,13.00577621]
[1755611053320,150.46,181.15,181.04,8.0115698]
[1755611053513,150.46,181.15,181.05,8.0115698]
[1755611053716,150.46,181.15,181.01,5.5227]
[1755611054019,150.32,181.15,181.02,2.58470197]
[1755611054213,150.32,181.15,181.07,5.5206]
[1755611054416,383.35841632,181.26,180.93,150.32]
[1755611054417,371.14,181.26,181.08,2.58470197]
[1755611054716,150.3,181.25,181.09,2.58470197]
[1755611054909,150.3,181.25,181.1,2.58470197]
[1755611055115,150.3,181.25,181.11,2.58470197]
[1755611055310,150.3,181.25,181.05,12.21841632]
[1755611055311,150.3,181.25,181.12,2.58470197]
[1755611055611,371.14,181.26,181.13,2.58470197]
[1755611055813,371.14,181.26,181.14,2.58470197]
[1755611056013,371.14,181.26,181.15,2.58470197]
[1755611056214,371.14,181.26,181.16,2.58470197]
[1755611056421,371.14,181.26,181.17,2.58470197]
[1755611056624,371.14,181.26,181.18,2.58470197]
[1755611056820,371.14,181.26,181.05,12.21841632]
[1755611057119,371.14,181.26,181.06,64.17749911]
[1755611057320,371.14,181.26,181.07,2.17749911]
[1755611057516,371.14,181.26,181.05,12.21841632]
[1755611057517,371.14,181.26,181.08,2.17749911]
[1755611057719,371.14,181.26,181.09,2.17749911]
[1755611058022,12.21841632,181.24,181.1,2.17749911]
[1755611058214,12.21841632,181.24,181.11,2.17749911]
[1755611058418,12.21841632,181.24,181.12,2.17749911]
[1755611058617,12.21841632,181.24,181.13,2.17749911]
[1755611058820,12.21841632,181.24,181.14,2.17749911]
[1755611059023,12.21841632,181.24,181.03,371.16]
[1755611059024,12.21841632,181.24,181.15,2.17749911]
[1755611059221,12.21841632,181.24,181.16,2.17749911]
[1755611059425,12.21841632,181.24,181.17,5.14170255]
[1755611059625,12.21841632,181.24,181.18,5.14170255]
[1755611059824,372.10079514,181.26,181.19,5.14189954]
[1755611059825,12.21841632,181.21,181.19,5.14189954]
[1755611060016,150.2,181.2,181.0,12.21841632]
[1755611060218,150.2,181.2,181.01,7.62236336]
[1755611060419,150.2,181.2,181.02,2.09976336]
[1755611060620,150.2,181.2,181.04,5.5217]
[1755611060930,150.18,181.19,181.05,2.09976336]
[1755611061227,150.18,181.19,181.06,7.62076336]
[1755611061428,150.18,181.19,181.0,12.21841632]
[1755611061429,150.18,181.19,181.07,2.09976336]
[1755611061731,150.18,181.19,181.0,12.21841632]
[1755611061732,150.18,181.19,181.08,7.14481964]
[1755611061928,150.18,181.19,181.09,7.14481964]
[1755611062229,150.18,181.19,181.1,7.14481964]
[1755611062429,150.18,181.19,181.11,7.14481964]
[1755611062621,150.18,181.19,181.11,2.09976336]
[1755611062828,150.18,181.19,181.12,7.0778982]
[1755611063023,150.18,181.19,181.13,7.0778982]
[1755611063327,150.18,181.19,181.14,7.0778982]
[1755611063525,150.18,181.19,181.15,7.08012752]
[1755611063726,150.18,181.19,181.16,2.16344819]
[1755611064026,150.18,181.19,181.02,5.5221]
[1755611064221,150.18,181.19,181.03,2.16493407]
[1755611064419,150.18,181.19,181.04,2.16493407]
[1755611064628,150.18,181.19,180.95,12.21841632]
[1755611065130,166.68,181.19,180.95,12.21841632]
[1755611066024,12.21841632,181.16,180.93,371.06]
[1755611066229,28.71841632,181.16,180.93,371.06]
[1755611066419,28.71841632,181.16,180.94,2.51367447]
[1755611066624,28.71841632,181.16,180.95,2.51367447]
[1755611066832,28.71841632,181.16,180.96,2.51367447]